[Event "*** Titled Tuesday Blitz"]
[Site "Chess.com"]
[Date "2021.02.02"]
[Round "5"]
[White "TurboSteen"]
[Black "LubovMarkelova"]
[Result "0-1"]
[WhiteElo "2038"]
[BlackElo "2248"]
[TimeControl "180+1"]
[EndTime "10:58:03 PST"]
[Termination "LubovMarkelova won on time"]

1. e4 {[%clk 0:03:00.9]} 1... e6 {[%clk 0:02:56.3]} 2. d4 {[%clk 0:02:59.3]}
2... d5 {[%clk 0:02:56.9]} 3. Nd2 {[%clk 0:02:58.8]} 3... c5 {[%clk 0:02:56.4]}
4. Ngf3 {[%clk 0:02:57]} 4... cxd4 {[%clk 0:02:55.9]} 5. Nxd4 {[%clk 0:02:53.8]}
5... Nf6 {[%clk 0:02:55.5]} 6. exd5 {[%clk 0:02:08.1]} 6... Qxd5 {[%clk
0:02:55]} 7. Nb5 {[%clk 0:02:05.4]} 7... Na6 {[%clk 0:02:54.3]} 8. Nc3 {[%clk
0:01:58.5]} 8... Qd8 {[%clk 0:02:46.2]} 9. a3 {[%clk 0:01:37.5]} 9... Be7 {[%clk
0:02:41.6]} 10. Qf3 {[%clk 0:01:26]} 10... Nc5 {[%clk 0:02:40.8]} 11. b4 {[%clk
0:00:54.5]} 11... Ncd7 {[%clk 0:02:39.7]} 12. Nc4 {[%clk 0:00:49.9]} 12... O-O
{[%clk 0:02:38.8]} 13. Bb2 {[%clk 0:00:46.7]} 13... e5 {[%clk 0:02:31.2]} 14.
O-O-O {[%clk 0:00:43.8]} 14... a5 {[%clk 0:02:10.5]} 15. Nxe5 {[%clk 0:00:37.8]}
15... axb4 {[%clk 0:02:08.4]} 16. axb4 {[%clk 0:00:36.5]} 16... Nxe5 {[%clk
0:02:04.7]} 17. Rxd8 {[%clk 0:00:33.8]} 17... Nxf3 {[%clk 0:02:04.9]} 18. Rxf8+
{[%clk 0:00:33.7]} 18... Kxf8 {[%clk 0:02:04.4]} 19. gxf3 {[%clk 0:00:34.1]}
19... Bxb4 {[%clk 0:02:04.2]} 20. Bd3 {[%clk 0:00:31.8]} 20... Be6 {[%clk
0:02:03.7]} 21. Ne4 {[%clk 0:00:29.6]} 21... Nxe4 {[%clk 0:02:00.9]} 22. fxe4
{[%clk 0:00:28.1]} 22... Ba3 {[%clk 0:01:58.3]} 23. f4 {[%clk 0:00:26.2]} 23...
Bxb2+ {[%clk 0:01:57]} 24. Kxb2 {[%clk 0:00:24.5]} 24... f5 {[%clk 0:01:46.3]}
25. exf5 {[%clk 0:00:21.6]} 25... Bd5 {[%clk 0:01:46.4]} 26. Re1 {[%clk
0:00:19.1]} 26... Kf7 {[%clk 0:01:46.1]} 27. Re5 {[%clk 0:00:18.8]} 27... Bc6
{[%clk 0:01:45.3]} 28. Bc4+ {[%clk 0:00:15.9]} 28... Kf6 {[%clk 0:01:42.6]} 29.
Re6+ {[%clk 0:00:14.8]} 29... Kxf5 {[%clk 0:01:42.8]} 30. Re7 {[%clk 0:00:15.3]}
30... Kf6 {[%clk 0:01:31.6]} 31. Rf7+ {[%clk 0:00:13.2]} 31... Kg6 {[%clk
0:01:30.4]} 32. Rc7 {[%clk 0:00:12.3]} 32... Rf8 {[%clk 0:01:24.1]} 33. Bd3+
{[%clk 0:00:10.4]} 33... Kh6 {[%clk 0:01:23.2]} 34. f5 {[%clk 0:00:06.6]} 34...
g6 {[%clk 0:01:06]} 35. fxg6 {[%clk 0:00:04.3]} 35... hxg6 {[%clk 0:01:06.9]}
36. Kc3 {[%clk 0:00:03.8]} 36... Rf2 {[%clk 0:01:05.8]} 0-1

[Event "*** Titled Tuesday Blitz"]
[Site "Chess.com"]
[Date "2021.02.02"]
[Round "5"]
[White "AlexTriapishko"]
[Black "kuban1991"]
[Result "1/2-1/2"]
[WhiteElo "2922"]
[BlackElo "2835"]
[TimeControl "180+1"]
[EndTime "10:58:09 PST"]
[Termination "Game drawn by repetition"]

1. Nf3 {[%clk 0:02:51.9]} 1... g6 {[%clk 0:02:59.7]} 2. d4 {[%clk 0:02:44.7]}
2... Bg7 {[%clk 0:03:00]} 3. e4 {[%clk 0:02:45.3]} 3... c6 {[%clk 0:02:59.3]} 4.
c3 {[%clk 0:02:39.7]} 4... d5 {[%clk 0:02:59.8]} 5. Nbd2 {[%clk 0:02:40.3]} 5...
dxe4 {[%clk 0:02:53.9]} 6. Nxe4 {[%clk 0:02:41.2]} 6... Nf6 {[%clk 0:02:54.2]}
7. Nxf6+ {[%clk 0:02:36.4]} 7... exf6 {[%clk 0:02:55.1]} 8. Bd3 {[%clk
0:02:25.2]} 8... O-O {[%clk 0:02:54.8]} 9. O-O {[%clk 0:02:25.8]} 9... a5 {[%clk
0:02:53.9]} 10. a4 {[%clk 0:02:20.6]} 10... Na6 {[%clk 0:02:51.7]} 11. h3 {[%clk
0:02:17.2]} 11... Be6 {[%clk 0:02:50]} 12. Bf4 {[%clk 0:02:11.2]} 12... Nc7
{[%clk 0:02:49.4]} 13. Nd2 {[%clk 0:02:08.8]} 13... Nd5 {[%clk 0:02:47.7]} 14.
Bh2 {[%clk 0:02:09.3]} 14... Re8 {[%clk 0:02:36.1]} 15. Ne4 {[%clk 0:02:06.5]}
15... b6 {[%clk 0:02:29.6]} 16. Re1 {[%clk 0:02:01.1]} 16... f5 {[%clk 0:02:15]}
17. Nd6 {[%clk 0:01:58.5]} 17... Re7 {[%clk 0:02:15.2]} 18. Nc4 {[%clk
0:01:48.3]} 18... f6 {[%clk 0:02:02.6]} 19. Qf3 {[%clk 0:01:40.8]} 19... Bf7
{[%clk 0:01:47]} 20. Nd6 {[%clk 0:01:33.4]} 20... Qd7 {[%clk 0:01:32.8]} 21.
Nxf7 {[%clk 0:01:22.3]} 21... Kxf7 {[%clk 0:01:31]} 22. g4 {[%clk 0:01:02]}
22... fxg4 {[%clk 0:01:27.2]} 23. hxg4 {[%clk 0:01:02.9]} 23... Rae8 {[%clk
0:01:23.6]} 24. Rxe7+ {[%clk 0:01:03.4]} 24... Rxe7 {[%clk 0:01:14.8]} 25. Kg2
{[%clk 0:01:01.7]} 25... Bh6 {[%clk 0:01:05.2]} 26. Rh1 {[%clk 0:00:57.9]} 26...
Bg5 {[%clk 0:01:00.4]} 27. Bg3 {[%clk 0:00:35.7]} 27... Kg7 {[%clk 0:00:59]} 28.
Be4 {[%clk 0:00:30.1]} 28... Qe6 {[%clk 0:00:46.7]} 29. Bd3 {[%clk 0:00:25.1]}
29... Qd7 {[%clk 0:00:41.8]} 30. Rd1 {[%clk 0:00:23.2]} 30... Qe6 {[%clk
0:00:28.2]} 31. Rh1 {[%clk 0:00:21]} 31... Qd7 {[%clk 0:00:28]} 1/2-1/2

[Event "*** Titled Tuesday Blitz"]
[Site "Chess.com"]
[Date "2021.02.02"]
[Round "5"]
[White "FGHSMN"]
[Black "Konavets"]
[Result "0-1"]
[WhiteElo "2631"]
[BlackElo "2931"]
[TimeControl "180+1"]
[EndTime "10:58:10 PST"]
[Termination "Konavets won on time"]

1. e4 {[%clk 0:03:00.9]} 1... c6 {[%clk 0:02:58.8]} 2. d4 {[%clk 0:02:59.5]}
2... d5 {[%clk 0:02:59.7]} 3. Nc3 {[%clk 0:02:56.3]} 3... dxe4 {[%clk
0:02:58.8]} 4. Nxe4 {[%clk 0:02:57.2]} 4... Bf5 {[%clk 0:02:58.7]} 5. Ng3 {[%clk
0:02:57]} 5... Bg6 {[%clk 0:02:59.2]} 6. h4 {[%clk 0:02:57.6]} 6... h6 {[%clk
0:02:58.9]} 7. N1e2 {[%clk 0:02:58.1]} 7... e6 {[%clk 0:02:58.2]} 8. Nf4 {[%clk
0:02:57.3]} 8... Bh7 {[%clk 0:02:58.6]} 9. Bc4 {[%clk 0:02:57.2]} 9... Bd6
{[%clk 0:02:58.2]} 10. c3 {[%clk 0:02:16.7]} 10... Nf6 {[%clk 0:02:23.3]} 11.
Ngh5 {[%clk 0:02:14.7]} 11... Bxf4 {[%clk 0:02:21.8]} 12. Bxf4 {[%clk
0:01:27.3]} 12... Nxh5 {[%clk 0:02:20.5]} 13. Qxh5 {[%clk 0:01:28.2]} 13... Nd7
{[%clk 0:02:21.2]} 14. Bxe6 {[%clk 0:01:06.2]} 14... Qe7 {[%clk 0:02:18.5]} 15.
O-O {[%clk 0:01:05.1]} 15... Nf6 {[%clk 0:02:18.8]} 16. Bxf7+ {[%clk 0:00:51.6]}
16... Kf8 {[%clk 0:02:19.2]} 17. Rfe1 {[%clk 0:00:22.4]} 17... Qd7 {[%clk
0:01:05.4]} 18. Be6 {[%clk 0:00:14.1]} 18... Nxh5 {[%clk 0:01:04.8]} 19. Bxd7
{[%clk 0:00:12.5]} 19... Nxf4 {[%clk 0:01:04.7]} 20. Re5 {[%clk 0:00:11.6]}
20... Rd8 {[%clk 0:01:04.3]} 21. Rae1 {[%clk 0:00:08.1]} 21... Bg6 {[%clk
0:01:04.8]} 22. Bg4 {[%clk 0:00:06.4]} 22... Nd3 {[%clk 0:01:04.6]} 23. Re6
{[%clk 0:00:04.1]} 23... Nxe1 {[%clk 0:00:59.5]} 24. Rxg6 {[%clk 0:00:04.7]}
24... Nd3 {[%clk 0:00:59.6]} 25. Bf5 {[%clk 0:00:04.3]} 25... Nxb2 {[%clk
0:00:53.8]} 26. Re6 {[%clk 0:00:05.2]} 26... g5 {[%clk 0:00:50.7]} 27. h5 {[%clk
0:00:03.4]} 27... Nc4 {[%clk 0:00:50.7]} 28. Bg6 {[%clk 0:00:03.4]} 28... Nd6
{[%clk 0:00:50.1]} 29. g3 {[%clk 0:00:02.6]} 29... Rg8 {[%clk 0:00:50.5]} 30. f4
{[%clk 0:00:02.2]} 30... gxf4 {[%clk 0:00:50.2]} 31. gxf4 {[%clk 0:00:03.1]}
31... Rg7 {[%clk 0:00:50.9]} 32. Kf2 {[%clk 0:00:02.5]} 32... Re7 {[%clk
0:00:51.2]} 33. Re5 {[%clk 0:00:01.2]} 33... Rxe5 {[%clk 0:00:50.3]} 0-1

[Event "*** Titled Tuesday Blitz"]
[Site "Chess.com"]
[Date "2021.02.02"]
[Round "5"]
[White "enriquetejedor"]
[Black "CM_rui"]
[Result "1-0"]
[WhiteElo "2517"]
[BlackElo "2352"]
[TimeControl "180+1"]
[EndTime "10:58:11 PST"]
[Termination "enriquetejedor won on time"]

1. e4 {[%clk 0:02:51.5]} 1... e5 {[%clk 0:02:59.8]} 2. Nf3 {[%clk 0:02:51.4]}
2... Nc6 {[%clk 0:02:59.5]} 3. Bb5 {[%clk 0:02:52]} 3... a6 {[%clk 0:02:59.7]}
4. Ba4 {[%clk 0:02:52.3]} 4... Nf6 {[%clk 0:02:59.7]} 5. O-O {[%clk 0:02:52.6]}
5... Be7 {[%clk 0:03:00]} 6. Re1 {[%clk 0:02:50.6]} 6... b5 {[%clk 0:03:00.6]}
7. Bb3 {[%clk 0:02:50.2]} 7... O-O {[%clk 0:03:01.5]} 8. h3 {[%clk 0:02:43.7]}
8... Bb7 {[%clk 0:02:59.2]} 9. d4 {[%clk 0:02:21.2]} 9... d5 {[%clk 0:02:32.8]}
10. dxe5 {[%clk 0:02:06.4]} 10... Nxe4 {[%clk 0:02:23.3]} 11. Qxd5 {[%clk
0:02:05.2]} 11... Na5 {[%clk 0:01:55.2]} 12. Qxd8 {[%clk 0:01:57.5]} 12... Raxd8
{[%clk 0:01:56.1]} 13. Be3 {[%clk 0:01:41]} 13... c5 {[%clk 0:01:54.6]} 14. c3
{[%clk 0:01:38]} 14... c4 {[%clk 0:01:36.9]} 15. Bc2 {[%clk 0:01:36.8]} 15...
Nc5 {[%clk 0:01:33]} 16. Bxc5 {[%clk 0:00:55.2]} 16... Bxc5 {[%clk 0:01:33.9]}
17. b4 {[%clk 0:00:56.1]} 17... cxb3 {[%clk 0:01:32.3]} 18. axb3 {[%clk
0:00:57]} 18... Nc6 {[%clk 0:01:23.8]} 19. b4 {[%clk 0:00:57.5]} 19... Bb6
{[%clk 0:01:23.3]} 20. Nbd2 {[%clk 0:00:58]} 20... Ne7 {[%clk 0:01:19.7]} 21.
Be4 {[%clk 0:00:55.8]} 21... Nd5 {[%clk 0:01:00.1]} 22. c4 {[%clk 0:00:56.3]}
22... bxc4 {[%clk 0:00:55.4]} 23. Nxc4 {[%clk 0:00:57.2]} 23... Ba7 {[%clk
0:00:52.8]} 24. b5 {[%clk 0:00:52.9]} 24... Rc8 {[%clk 0:00:36.2]} 25. Nd6
{[%clk 0:00:48.5]} 25... Rc7 {[%clk 0:00:18.4]} 26. Nxb7 {[%clk 0:00:41.9]}
26... Nf4 {[%clk 0:00:17.1]} 27. Rxa6 {[%clk 0:00:38.9]} 27... Bb8 {[%clk
0:00:07.9]} 28. Nd6 {[%clk 0:00:38.6]} 28... Rc3 {[%clk 0:00:03.9]} 29. g3
{[%clk 0:00:38.6]} 29... Nxh3+ {[%clk 0:00:03.1]} 30. Kg2 {[%clk 0:00:38.6]} 1-0

[Event "*** Titled Tuesday Blitz"]
[Site "Chess.com"]
[Date "2021.02.02"]
[Round "5"]
[White "PavelChernomordik"]
[Black "JTCoach"]
[Result "0-1"]
[WhiteElo "2386"]
[BlackElo "2696"]
[TimeControl "180+1"]
[EndTime "10:58:14 PST"]
[Termination "JTCoach won by resignation"]

1. e4 {[%clk 0:03:00.9]} 1... c5 {[%clk 0:03:00]} 2. Nc3 {[%clk 0:03:00.2]} 2...
Nc6 {[%clk 0:03:00.2]} 3. Bb5 {[%clk 0:02:59]} 3... Nd4 {[%clk 0:02:58.7]} 4.
Bc4 {[%clk 0:02:58.4]} 4... g6 {[%clk 0:02:57.5]} 5. Nge2 {[%clk 0:02:57.4]}
5... Bg7 {[%clk 0:02:55.5]} 6. Nxd4 {[%clk 0:02:56.9]} 6... cxd4 {[%clk
0:02:54.7]} 7. Qf3 {[%clk 0:02:56.8]} 7... Nh6 {[%clk 0:02:33.4]} 8. Ne2 {[%clk
0:02:55]} 8... O-O {[%clk 0:02:31.8]} 9. h3 {[%clk 0:02:54.4]} 9... b6 {[%clk
0:02:23.5]} 10. g4 {[%clk 0:02:36.3]} 10... Bb7 {[%clk 0:02:19.7]} 11. g5 {[%clk
0:02:16.1]} 11... Nf5 {[%clk 0:02:17.3]} 12. Qg4 {[%clk 0:02:15.6]} 12... d5
{[%clk 0:02:10.7]} 13. Bd3 {[%clk 0:02:02.5]} 13... Nd6 {[%clk 0:01:44.4]} 14.
f3 {[%clk 0:01:52.1]} 14... e5 {[%clk 0:01:37.5]} 15. h4 {[%clk 0:01:46.7]}
15... dxe4 {[%clk 0:01:33.7]} 16. fxe4 {[%clk 0:01:45.9]} 16... f5 {[%clk
0:01:33.9]} 17. gxf6 {[%clk 0:01:45.2]} 17... Qxf6 {[%clk 0:01:33.6]} 18. c3
{[%clk 0:01:26]} 18... Qf2+ {[%clk 0:01:13.4]} 19. Kd1 {[%clk 0:01:25.3]} 19...
Qf3 {[%clk 0:01:11.3]} 20. Qe6+ {[%clk 0:01:21.5]} 20... Kh8 {[%clk 0:01:10.9]}
21. Rh3 {[%clk 0:00:54.1]} 21... Qf1+ {[%clk 0:01:04.9]} 22. Kc2 {[%clk
0:00:53.6]} 22... Bc8 {[%clk 0:01:03]} 23. Qxd6 {[%clk 0:00:52.2]} 23... Qxh3
{[%clk 0:00:52]} 24. b3 {[%clk 0:00:47.9]} 24... Bg4 {[%clk 0:00:48.8]} 25. cxd4
{[%clk 0:00:33.9]} 25... Rac8+ {[%clk 0:00:42.6]} 26. Nc3 {[%clk 0:00:25.3]}
26... exd4 {[%clk 0:00:42.2]} 27. Bb2 {[%clk 0:00:20.9]} 27... dxc3 {[%clk
0:00:40.3]} 28. Bxc3 {[%clk 0:00:19.2]} 28... Bxc3 {[%clk 0:00:33.5]} 29. dxc3
{[%clk 0:00:18.6]} 29... Rf2+ {[%clk 0:00:33.5]} 0-1

[Event "*** Titled Tuesday Blitz"]
[Site "Chess.com"]
[Date "2021.02.02"]
[Round "5"]
[White "elohunter1999"]
[Black "EmirhanTarlabasi"]
[Result "1-0"]
[WhiteElo "2665"]
[BlackElo "2492"]
[TimeControl "180+1"]
[EndTime "10:58:14 PST"]
[Termination "elohunter1999 won by resignation"]

1. d4 {[%clk 0:03:00.9]} 1... d5 {[%clk 0:02:58.8]} 2. c4 {[%clk 0:03:00.7]}
2... e6 {[%clk 0:02:55.8]} 3. Nc3 {[%clk 0:03:00.3]} 3... c6 {[%clk 0:02:54.6]}
4. e4 {[%clk 0:02:57.7]} 4... dxe4 {[%clk 0:02:47.9]} 5. Nxe4 {[%clk 0:02:58.6]}
5... Bb4+ {[%clk 0:02:44.4]} 6. Bd2 {[%clk 0:02:58.3]} 6... Bxd2+ {[%clk
0:02:42.1]} 7. Qxd2 {[%clk 0:02:57.1]} 7... Nf6 {[%clk 0:02:35.1]} 8. Nxf6+
{[%clk 0:02:40.1]} 8... Qxf6 {[%clk 0:02:36]} 9. Nf3 {[%clk 0:02:40.7]} 9... O-O
{[%clk 0:02:29.9]} 10. Bd3 {[%clk 0:02:33.6]} 10... b6 {[%clk 0:02:16.1]} 11.
Qe3 {[%clk 0:02:28]} 11... Bb7 {[%clk 0:01:57.2]} 12. Ne5 {[%clk 0:02:17.5]}
12... Rd8 {[%clk 0:01:53.7]} 13. O-O-O {[%clk 0:02:13.8]} 13... Na6 {[%clk
0:01:37.5]} 14. Ng4 {[%clk 0:01:55.8]} 14... Qe7 {[%clk 0:01:31.7]} 15. Bb1
{[%clk 0:01:41.9]} 15... c5 {[%clk 0:01:26.6]} 16. d5 {[%clk 0:01:40.8]} 16...
b5 {[%clk 0:01:04.8]} 17. dxe6 {[%clk 0:01:33.8]} 17... Qxe6 {[%clk 0:00:53.5]}
18. Qxe6 {[%clk 0:01:28.4]} 18... fxe6 {[%clk 0:00:54.4]} 19. cxb5 {[%clk
0:01:28.6]} 19... Nb4 {[%clk 0:00:52.1]} 20. Ne3 {[%clk 0:01:25.7]} 20... Rd4
{[%clk 0:00:39.1]} 21. a3 {[%clk 0:01:20.1]} 21... Nd5 {[%clk 0:00:35.7]} 22.
Ba2 {[%clk 0:01:17]} 22... Rd8 {[%clk 0:00:19.4]} 23. g3 {[%clk 0:01:08.4]}
23... Kf7 {[%clk 0:00:19.6]} 24. Rhe1 {[%clk 0:01:06.5]} 24... Nxe3 {[%clk
0:00:15.1]} 25. fxe3 {[%clk 0:01:04.6]} 25... Rxd1+ {[%clk 0:00:10.1]} 26. Rxd1
{[%clk 0:01:05.5]} 26... Rxd1+ {[%clk 0:00:10.6]} 27. Kxd1 {[%clk 0:01:06.4]}
27... Kf6 {[%clk 0:00:11.1]} 28. Kd2 {[%clk 0:01:05.4]} 28... Ke5 {[%clk
0:00:11.5]} 29. Kc3 {[%clk 0:01:01.7]} 29... Ke4 {[%clk 0:00:05]} 30. Bxe6
{[%clk 0:01:01]} 30... Kxe3 {[%clk 0:00:05.5]} 31. Kc4 {[%clk 0:01:01.1]} 31...
Kf2 {[%clk 0:00:03.4]} 32. Kxc5 {[%clk 0:00:59.9]} 32... Kg2 {[%clk 0:00:04]}
33. Bd5+ {[%clk 0:00:59.1]} 33... Bxd5 {[%clk 0:00:02.9]} 34. Kxd5 {[%clk
0:01:00]} 34... Kxh2 {[%clk 0:00:03.8]} 35. a4 {[%clk 0:01:00.9]} 35... Kxg3
{[%clk 0:00:04.7]} 36. a5 {[%clk 0:01:01.3]} 36... h5 {[%clk 0:00:04.7]} 37. b6
{[%clk 0:01:01.8]} 37... axb6 {[%clk 0:00:05.6]} 38. axb6 {[%clk 0:01:02.7]}
38... h4 {[%clk 0:00:06.5]} 39. b7 {[%clk 0:01:02.8]} 39... h3 {[%clk
0:00:07.4]} 40. b8=Q+ {[%clk 0:01:03.7]} 40... Kg2 {[%clk 0:00:07.3]} 41. Qe5
{[%clk 0:01:02]} 41... h2 {[%clk 0:00:08.2]} 42. Qxg7+ {[%clk 0:01:01.9]} 1-0

[Event "*** Titled Tuesday Blitz"]
[Site "Chess.com"]
[Date "2021.02.02"]
[Round "5"]
[White "Unknown_IM"]
[Black "Mikhail_Golubev"]
[Result "0-1"]
[WhiteElo "2388"]
[BlackElo "2531"]
[TimeControl "180+1"]
[EndTime "10:58:16 PST"]
[Termination "Mikhail_Golubev won by resignation"]

1. e4 {[%clk 0:03:00.9]} 1... c5 {[%clk 0:02:59]} 2. Nf3 {[%clk 0:03:00.5]} 2...
d6 {[%clk 0:02:58.9]} 3. c3 {[%clk 0:03:00.1]} 3... Nf6 {[%clk 0:02:58.4]} 4.
Be2 {[%clk 0:02:59.7]} 4... Nbd7 {[%clk 0:02:50.6]} 5. Qc2 {[%clk 0:02:58.6]}
5... Qc7 {[%clk 0:02:49.5]} 6. O-O {[%clk 0:02:58.7]} 6... e6 {[%clk 0:02:49.7]}
7. Bd1 {[%clk 0:02:58.7]} 7... b6 {[%clk 0:02:41.3]} 8. d4 {[%clk 0:02:57.4]}
8... Bb7 {[%clk 0:02:41.3]} 9. Re1 {[%clk 0:02:57.1]} 9... Be7 {[%clk
0:02:31.6]} 10. Nbd2 {[%clk 0:02:52.2]} 10... cxd4 {[%clk 0:02:20.1]} 11. cxd4
{[%clk 0:02:51.7]} 11... Qxc2 {[%clk 0:02:11.2]} 12. Bxc2 {[%clk 0:02:52.6]}
12... O-O {[%clk 0:02:11.2]} 13. Nf1 {[%clk 0:02:48.9]} 13... Rac8 {[%clk
0:02:08]} 14. Bd3 {[%clk 0:02:48.7]} 14... d5 {[%clk 0:02:05.1]} 15. e5 {[%clk
0:02:45.8]} 15... Ne4 {[%clk 0:02:04.6]} 16. Bxe4 {[%clk 0:02:10.5]} 16... dxe4
{[%clk 0:02:05.5]} 17. N3d2 {[%clk 0:02:10.8]} 17... Rfd8 {[%clk 0:01:50.2]} 18.
Nxe4 {[%clk 0:02:10.4]} 18... Nb8 {[%clk 0:01:41.1]} 19. Bg5 {[%clk 0:00:52.9]}
19... Bxg5 {[%clk 0:01:39.6]} 20. Nxg5 {[%clk 0:00:53.8]} 20... Rxd4 {[%clk
0:01:29.9]} 21. Rad1 {[%clk 0:00:53.1]} 21... Rcd8 {[%clk 0:01:21.9]} 22. Rxd4
{[%clk 0:00:50.1]} 22... Rxd4 {[%clk 0:01:22.8]} 23. Nf3 {[%clk 0:00:25]} 23...
Bxf3 {[%clk 0:01:19.1]} 24. gxf3 {[%clk 0:00:25]} 24... Nd7 {[%clk 0:01:17.2]}
25. Kg2 {[%clk 0:00:22.4]} 25... g5 {[%clk 0:01:12.5]} 26. Kg3 {[%clk 0:00:17]}
26... Kg7 {[%clk 0:01:07.9]} 27. h3 {[%clk 0:00:13]} 27... Kg6 {[%clk
0:01:07.6]} 28. Nh2 {[%clk 0:00:13]} 28... Rd2 {[%clk 0:00:58.3]} 29. b4 {[%clk
0:00:09.6]} 29... Rxa2 {[%clk 0:00:57.6]} 30. Ng4 {[%clk 0:00:09.5]} 30... h5
{[%clk 0:00:54.2]} 31. Rd1 {[%clk 0:00:04.8]} 31... hxg4 {[%clk 0:00:50]} 32.
Rxd7 {[%clk 0:00:05.7]} 32... gxh3 {[%clk 0:00:50.1]} 33. Kxh3 {[%clk
0:00:06.2]} 33... Rxf2 {[%clk 0:00:49.5]} 34. Rxa7 {[%clk 0:00:05]} 34... Rxf3+
{[%clk 0:00:48.9]} 35. Kg2 {[%clk 0:00:05.5]} 35... Rb3 {[%clk 0:00:47.7]} 0-1

[Event "*** Titled Tuesday Blitz"]
[Site "Chess.com"]
[Date "2021.02.02"]
[Round "5"]
[White "Vnebo"]
[Black "oneshot007"]
[Result "1-0"]
[WhiteElo "2722"]
[BlackElo "2456"]
[TimeControl "180+1"]
[EndTime "10:58:18 PST"]
[Termination "Vnebo won by checkmate"]

1. c4 {[%clk 0:03:00.9]} 1... c5 {[%clk 0:02:59.6]} 2. Nc3 {[%clk 0:02:57.3]}
2... g6 {[%clk 0:02:59.8]} 3. g3 {[%clk 0:02:57.5]} 3... Bg7 {[%clk 0:02:59.9]}
4. Bg2 {[%clk 0:02:58.1]} 4... Nf6 {[%clk 0:03:00.5]} 5. Nf3 {[%clk 0:02:56.4]}
5... O-O {[%clk 0:03:00.8]} 6. O-O {[%clk 0:02:56.9]} 6... Nc6 {[%clk
0:03:01.3]} 7. d3 {[%clk 0:02:57.3]} 7... d6 {[%clk 0:03:01.2]} 8. Qd2 {[%clk
0:02:57.7]} 8... b6 {[%clk 0:02:54]} 9. Ne5 {[%clk 0:02:46.4]} 9... dxe5 {[%clk
0:02:48.6]} 10. Bxc6 {[%clk 0:02:46.3]} 10... Rb8 {[%clk 0:02:49.2]} 11. Bg2
{[%clk 0:02:44.4]} 11... Bb7 {[%clk 0:02:46.7]} 12. Bxb7 {[%clk 0:02:33]} 12...
Rxb7 {[%clk 0:02:47.6]} 13. f3 {[%clk 0:02:31]} 13... h5 {[%clk 0:02:40.7]} 14.
Qe3 {[%clk 0:02:19.1]} 14... h4 {[%clk 0:02:28.1]} 15. g4 {[%clk 0:02:18.1]}
15... e6 {[%clk 0:01:55.1]} 16. Qg5 {[%clk 0:02:15.4]} 16... Nh7 {[%clk
0:01:46.1]} 17. Qxd8 {[%clk 0:02:13.1]} 17... Rxd8 {[%clk 0:01:47]} 18. g5
{[%clk 0:02:11.7]} 18... e4 {[%clk 0:01:20.6]} 19. Nxe4 {[%clk 0:02:08.4]} 19...
Rbd7 {[%clk 0:01:15.2]} 20. Kg2 {[%clk 0:02:06]} 20... a6 {[%clk 0:01:04.2]} 21.
Rb1 {[%clk 0:02:04.5]} 21... f5 {[%clk 0:01:03.6]} 22. gxf6 {[%clk 0:02:03.7]}
22... Nxf6 {[%clk 0:01:04]} 23. Bg5 {[%clk 0:01:56.9]} 23... Kf7 {[%clk
0:01:02.3]} 24. Bxh4 {[%clk 0:01:40.1]} 24... b5 {[%clk 0:00:45.9]} 25. cxb5
{[%clk 0:01:30]} 25... axb5 {[%clk 0:00:46.8]} 26. Nxc5 {[%clk 0:01:26.9]} 26...
Rc7 {[%clk 0:00:44.9]} 27. Rfc1 {[%clk 0:01:14.2]} 27... Rdc8 {[%clk 0:00:42.6]}
28. Bxf6 {[%clk 0:01:10.3]} 28... Bxf6 {[%clk 0:00:38.1]} 29. b4 {[%clk
0:01:09.4]} 29... Bd4 {[%clk 0:00:38.2]} 30. Rc2 {[%clk 0:01:03]} 30... Bxc5
{[%clk 0:00:37.2]} 31. bxc5 {[%clk 0:01:01.4]} 31... Rxc5 {[%clk 0:00:38.1]} 32.
Rcb2 {[%clk 0:00:56]} 32... Ra8 {[%clk 0:00:34.9]} 33. Rxb5 {[%clk 0:00:52.5]}
33... Rxb5 {[%clk 0:00:32.9]} 34. Rxb5 {[%clk 0:00:53.4]} 34... Rxa2 {[%clk
0:00:33.6]} 35. Kf2 {[%clk 0:00:53.1]} 35... Kf6 {[%clk 0:00:33.9]} 36. h4
{[%clk 0:00:53.1]} 36... Ra4 {[%clk 0:00:33.7]} 37. Kg3 {[%clk 0:00:45.1]} 37...
Ra1 {[%clk 0:00:30.8]} 38. Rb4 {[%clk 0:00:42.4]} 38... Rg1+ {[%clk 0:00:30.5]}
39. Kf2 {[%clk 0:00:41.8]} 39... Rh1 {[%clk 0:00:30.4]} 40. Rg4 {[%clk
0:00:41.6]} 40... Rh2+ {[%clk 0:00:29.7]} 41. Ke3 {[%clk 0:00:41.6]} 41... Kf5
{[%clk 0:00:26.9]} 42. d4 {[%clk 0:00:39.8]} 42... Rh1 {[%clk 0:00:27.2]} 43.
Rf4# {[%clk 0:00:39.4]} 1-0